bitfinex/quotes_ETHUSD_20251215
["timestamp","ask_amount","ask_price","bid_price","bid_amount"]
[1765838376270,0.5505,2946.7,2946.2,0.7201]
[1765838376439,0.453,2946.3,2946.2,0.7201]
[1765838376641,0.453,2946.3,2946.2,1.47098018]
[1765838376830,0.5491,2946.3,2946.2,1.47098018]
[1765838383941,0.5491,2946.3,2946.2,4.86518288]
[1765838384145,0.001,2946.7,2946.2,8.75858558]
[1765838384339,0.001,2946.7,2946.6,0.4992]
[1765838384538,0.001,2946.7,2946.6,0.9991]
[1765838384724,0.001,2946.7,2946.6,1.6353658]
[1765838384923,0.001,2946.7,2946.6,2.47405454]
[1765838385356,0.001,2946.7,2946.6,1.97415454]
[1765838387254,0.001,2946.7,2946.6,5.36789647]
[1765838388053,0.001,2946.7,2946.6,1.97415454]
[1765838391266,0.0894,2946.7,2946.6,1.47495454]
[1765838393869,0.0894,2946.7,2946.6,4.86869647]
[1765838394369,0.5473,2946.7,2946.6,0.6362658]
[1765838394571,1.0843,2946.7,2946.1,3.97478313]
[1765838394767,1.0843,2946.7,2946.3,3.39408493]
[1765838394974,0.0046,2946.4,2946.3,3.39408493]
[1765838395347,0.0894,2946.4,2946.3,3.39408493]
[1765838395567,0.0894,2946.4,2946.3,4.13095872]
[1765838395877,0.001,2946.7,2946.3,5.16815872]
[1765838396039,0.4617,2946.7,2946.3,4.43128493]
[1765838396247,0.455504,2946.3,2945.5,0.002]
[1765838396468,0.1965,2945.9,2945.5,0.002]
[1765838396778,0.23039615,2945.9,2945.5,0.002]
[1765838396978,1.058904,2945.9,2945.5,0.002]
[1765838403480,1.058904,2945.9,2945.8,0.002]
[1765838410966,0.405504,2945.8,2945.6,0.002]
[1765838411319,0.5416,2945.7,2945.6,0.002]
[1765838411669,0.9929,2945.7,2945.6,0.002]
[1765838412594,1.448404,2945.7,2945.6,0.002]
[1765838412891,1.67860095,2945.7,2945.6,0.002]
[1765838413079,0.405504,2945.6,2945.5,0.002]
[1765838413279,1.53047929,2945.6,2945.5,0.002]
[1765838414666,0.405504,2945.3,2944.9,0.002]
[1765838414871,0.0977,2945.0,2944.9,0.002]
[1765838415073,0.53710015,2945.0,2944.9,0.002]
[1765838415395,0.98490015,2945.0,2944.9,0.002]
[1765838415770,0.405504,2944.9,2944.8,0.002]
[1765838415969,0.455504,2944.7,2944.5,0.002]
[1765838416202,1.12009615,2944.6,2944.5,0.002]
[1765838416397,1.52560015,2944.6,2944.5,0.002]
[1765838416702,0.954704,2944.5,2944.2,0.002]
[1765838416882,0.4665,2944.3,2944.2,0.002]
[1765838417278,0.954604,2944.3,2944.2,0.002]
[1765838422107,0.4665,2944.3,2944.2,0.002]
[1765838422310,0.05,2944.6,2944.2,0.4737]
[1765838422474,0.0977,2944.3,2944.2,0.002]
[1765838422978,0.5455,2944.3,2944.2,0.002]
[1765838423602,0.951004,2944.3,2944.2,0.002]
[1765838426417,0.405504,2944.2,2944.1,0.002]
[1765838426705,0.954504,2944.2,2944.1,0.002]
[1765838442310,0.955504,2944.2,2944.1,0.002]
[1765838446504,1.13509144,2944.2,2944.1,0.002]
[1765838446903,1.16898759,2944.2,2944.1,0.002]
[1765838449827,0.5329,2944.1,2943.8,0.002]
[1765838450022,0.2475,2943.9,2943.8,0.002]
[1765838450422,0.7281,2943.9,2943.8,0.002]
[1765838454929,0.2475,2943.9,2943.8,0.002]
[1765838455315,0.5469,2943.9,2943.8,0.002]
[1765838456531,0.537,2944.0,2943.8,0.4706]
[1765838456847,0.537,2944.0,2943.8,0.002]
[1765838457321,0.0664,2943.9,2943.8,0.002]
[1765838458413,0.537,2944.0,2943.8,0.9388]
[1765838458622,0.537,2944.0,2943.9,1.23904567]
[1765838458825,0.538,2944.2,2943.9,1.70724567]
[1765838459226,0.538,2944.2,2943.9,1.23904567]
[1765838460630,0.538,2944.2,2943.9,11.39953248]
[1765838460835,0.001,2944.2,2944.1,7.42155665]
[1765838461036,0.001,2944.2,2944.1,8.24471835]
[1765838461220,0.001,2944.2,2944.1,8.71291835]
[1765838465511,0.001,2944.2,2944.1,9.24991835]
[1765838466851,0.001,2944.2,2944.1,1.8287617]
[1765838469010,0.5461,2944.2,2943.8,0.002]
[1765838469218,0.0624,2943.9,2943.8,0.4883]
[1765838469650,0.0624,2943.9,2943.8,0.002]
[1765838471644,0.728,2943.9,2943.8,0.002]
[1765838476746,1.133504,2943.9,2943.8,0.002]
[1765838476925,1.36699154,2943.9,2943.8,0.002]
[1765838493735,0.001,2944.0,2943.8,0.459]
[1765838493935,0.001,2944.0,2943.9,0.49096854]
[1765838494137,0.001,2944.0,2943.9,0.9143]
[1765838494463,0.001,2944.0,2943.9,7.71291526]
[1765838494760,0.001,2944.0,2943.9,11.07580123]
[1765838495135,0.001,2944.0,2943.9,14.92580123]
[1765838495958,0.001,2944.0,2943.9,8.16115451]
[1765838496366,0.001,2944.0,2943.9,14.92580123]
[1765838497768,0.001,2944.0,2943.9,21.69044795]
[1765838497965,0.001,2944.0,2943.9,22.27092324]
[1765838499340,0.001,2944.0,2943.9,15.64243352]
[1765838499661,0.001,2944.0,2943.9,22.40708024]
[1765838500253,0.001,2944.0,2943.9,22.94408024]
[1765838504048,0.001,2944.2,2944.1,7.34512201]
[1765838504248,0.001,2944.2,2944.1,7.99002201]
[1765838504546,0.001,2944.2,2944.1,8.44732201]
[1765838504749,0.001,2944.2,2944.1,8.5834563]
[1765838505364,0.001,2944.2,2944.1,8.57544467]
[1765838505965,0.001,2944.2,2944.1,11.97206842]
[1765838507605,0.001,2944.4,2944.1,19.21769217]
[1765838507903,0.001,2944.4,2944.3,0.457]
[1765838508067,0.001,2944.4,2944.3,8.81986832]
[1765838508406,0.001,2944.4,2944.3,9.27716832]
[1765838508701,0.001,2945.2,2945.1,6.75663509]
[1765838508876,0.001,2945.2,2945.1,8.0771986]
[1765838509066,0.001,2945.2,2945.1,8.5344986]
[1765838509463,0.001,2945.2,2945.1,8.67060139]
[1765838509871,0.001,2945.2,2945.1,9.25107668]
[1765838510573,0.001,2945.2,2945.1,12.64654712]
[1765838515997,0.001,2945.2,2945.1,16.49554712]
[1765838520813,0.001,2945.2,2945.1,9.73891203]
[1765838521012,0.001,2945.2,2945.1,17.03254712]
[1765838538963,0.001,2945.2,2945.1,5.88991203]
[1765838539123,0.001,2945.2,2945.1,5.21424852]
[1765838540624,0.001,2945.2,2945.1,4.63377323]
[1765838548045,0.001,2945.2,2945.1,8.29487323]
[1765838549013,0.001,2945.2,2945.1,8.49097323]
[1765838567456,0.001,2945.2,2945.1,15.24591794]
[1765838578076,0.001,2945.2,2945.1,15.78291794]
[1765838581072,0.001,2945.2,2945.1,11.93391794]
[1765838586391,0.001,2945.2,2945.1,15.78291794]
[1765838592106,0.001,2945.2,2945.1,8.82967323]
[1765838593909,0.001,2945.2,2945.1,8.29267323]
[1765838595410,0.001,2945.2,2945.1,4.44367323]
[1765838597681,0.4933,2945.2,2945.1,3.53157323]
[1765838598022,0.5505,2945.2,2945.1,0.13610279]
[1765838599505,0.4933,2945.2,2945.1,0.13610279]
[1765838599993,0.08,2945.2,2945.1,0.13610279]
[1765838601310,0.08,2945.2,2945.1,3.98510279]
[1765838605417,0.08,2945.2,2945.1,0.13610279]
[1765838606320,0.08,2945.2,2945.1,3.53157323]
[1765838606821,0.001,2945.2,2945.1,4.00267323]
[1765838607616,0.001,2945.2,2945.1,0.60720279]
[1765838609224,0.001,2945.2,2945.1,0.13610279]
[1765838609426,0.08,2945.2,2945.1,0.13610279]
[1765838609627,0.001,2945.2,2945.1,0.60720279]
[1765838610222,0.001,2945.2,2945.1,4.00267323]
[1765838611023,0.08,2945.2,2945.1,3.53157323]
[1765838611324,0.001,2945.2,2945.1,3.53157323]
[1765838614119,0.08,2945.2,2945.1,3.53157323]
[1765838615229,0.08,2945.2,2945.1,0.13610279]
[1765838615429,0.5463,2945.2,2945.1,0.13610279]
[1765838616008,0.08,2945.2,2945.1,0.13610279]
[1765838617324,0.5463,2945.2,2945.1,0.13610279]
[1765838617523,0.5463,2945.2,2944.7,3.39590269]
[1765838617711,0.4673,2945.2,2944.8,0.5463]
[1765838618318,0.0829,2944.9,2944.8,0.5463]
[1765838618698,0.537,2945.1,2944.8,0.5463]
[1765838619027,0.4651,2944.9,2944.8,0.5463]
[1765838619194,0.5629,2944.9,2944.8,0.5463]
[1765838619899,0.4651,2944.9,2944.8,0.5463]
[1765838621930,0.4651,2944.9,2944.8,3.94211635]
[1765838623902,0.5494,2944.9,2944.8,3.94211635]
[1765838624106,0.4651,2944.9,2944.8,3.94211635]
[1765838627640,0.537,2945.1,2944.8,0.5463]
[1765838628030,0.537,2945.1,2944.8,3.9421038]
[1765838628918,0.537,2945.1,2944.8,0.5463]
[1765838629119,0.4651,2944.9,2944.8,0.5463]
[1765838629511,0.6469,2944.9,2944.8,0.5463]
[1765838630022,0.6469,2944.9,2944.5,0.4697]
[1765838630023,0.0804,2944.9,2944.5,0.4697]
[1765838630226,0.0804,2944.9,2944.7,0.6469]
[1765838630537,0.537,2945.1,2944.7,0.6469]
[1765838630745,0.537,2945.1,2944.8,0.4697]
[1765838630942,0.001,2945.2,2944.8,0.4697]
[1765838631144,0.001,2945.2,2944.8,3.86550767]
[1765838631829,0.4698,2945.2,2944.8,3.39580767]
[1765838632045,0.001,2945.2,2944.8,3.86550767]
[1765838632221,0.001,2945.2,2944.9,0.4697]
[1765838632608,0.001,2945.2,2944.8,3.39580767]
[1765838632906,0.001,2945.2,2944.8,3.86550767]
[1765838634810,0.001,2945.2,2944.8,0.4697]
[1765838637444,0.001,2945.2,2944.8,3.86551137]
[1765838637639,0.001,2945.2,2945.1,0.4758]
[1765838638041,0.0814,2945.2,2944.9,0.4697]
[1765838638213,0.001,2945.2,2945.1,1.0128]
[1765838642848,0.0814,2945.2,2945.1,0.537]
[1765838643045,0.0852,2945.2,2945.1,0.537]
[1765838643254,0.001,2945.2,2945.1,1.023]
[1765838646041,0.001,2945.2,2945.1,1.476]
[1765838647619,0.001,2945.2,2945.1,1.6588]
[1765838647813,0.001,2945.2,2945.1,2.5602293]
[1765838648019,0.001,2945.2,2945.1,5.95569974]
[1765838649628,0.001,2945.2,2945.1,5.05427044]
[1765838650941,0.001,2945.2,2945.1,1.6588]
[1765838651143,0.001,2945.2,2945.1,5.05427044]
[1765838652745,0.001,2945.2,2945.1,5.00427044]
[1765838657165,0.001,2945.2,2945.1,1.6088]
[1765838657563,0.001,2945.2,2945.1,5.00427044]
[1765838657728,0.001,2945.2,2945.1,1.6088]
[1765838657928,0.001,2945.2,2945.1,8.36633871]
[1765838658265,0.001,2945.2,2945.1,12.59844302]
[1765838663328,0.001,2945.2,2945.1,16.44744302]
[1765838665755,0.001,2945.2,2945.1,17.02791831]
[1765838666458,0.001,2945.2,2945.1,13.17891831]
[1765838667829,0.001,2945.4,2945.1,16.57438875]
[1765838668024,0.001,2945.4,2945.3,0.486]
[1765838668552,0.001,2945.4,2945.3,5.05078647]
[1765838671470,0.001,2945.4,2945.3,5.08473886]
[1765838672069,0.001,2945.4,2945.3,5.05078647]
[1765838673481,0.001,2945.4,2945.3,8.89978647]
[1765838673776,0.001,2945.4,2945.3,9.73642034]
[1765838676655,0.001,2945.4,2945.3,16.48692154]
[1765838682778,0.001,2945.6,2945.4,0.98597929]
[1765838682986,0.0105174,2946.1,2946.0,7.33097649]
[1765838683280,0.0105174,2946.1,2946.0,11.66257649]
[1765838683492,0.0105174,2946.1,2946.0,9.20010464]
[1765838684786,0.0105174,2946.1,2946.0,12.59453776]
[1765838688781,0.0105174,2946.1,2946.0,16.44353776]
[1765838689391,0.0105174,2946.1,2946.0,16.4423699]
[1765838690773,0.0115174,2946.1,2946.0,16.4423699]
[1765838698876,0.00759795,2946.1,2946.0,16.4423699]
[1765838708187,0.001,2946.1,2946.0,16.4423699]
[1765838708391,0.001,2946.4,2946.2,6.7884054]
[1765838708700,0.001,2946.4,2946.3,0.4668]
[1765838709193,0.001,2946.4,2946.3,0.60285465]
[1765838709400,0.001,2946.4,2946.3,3.99694214]
[1765838709599,0.001,2946.4,2946.3,4.46514214]
[1765838713073,0.001,2946.4,2946.3,8.30654419]
[1765838715610,0.001,2946.4,2946.3,7.83834419]
[1765838715916,0.001,2946.4,2946.3,8.30654419]
[1765838724622,0.001,2946.4,2946.3,7.83834419]
[1765838724925,0.001,2946.4,2946.3,7.37154419]
[1765838725096,0.001,2946.4,2946.3,7.83834419]
[1765838725296,0.001,2946.4,2946.3,8.30654419]
[1765838729930,0.001,2946.4,2946.3,7.83834419]
[1765838730630,0.5503,2946.4,2946.3,0.13605465]
[1765838730834,0.5503,2946.4,2946.0,0.002]
[1765838731000,0.4503,2946.1,2946.0,0.002]
[1765838731504,0.549,2946.1,2946.0,0.002]
[1765838731704,0.549,2946.1,2946.0,0.4523]
[1765838734719,0.536,2946.2,2946.0,0.9208]
[1765838735024,0.536,2946.2,2946.0,4.31190205]
[1765838735231,0.0523,2946.1,2946.0,3.84340205]
[1765838735613,0.0523,2946.1,2946.0,4.37940205]
[1765838736013,0.545,2946.1,2946.0,4.37940205]
[1765838740513,0.536,2946.2,2946.0,4.37940205]
[1765838740830,0.536,2946.2,2946.0,3.84340205]
[1765838741033,0.536,2946.2,2946.1,3.84140205]
[1765838741215,0.536,2946.2,2946.1,4.37740205]
[1765838741404,0.597,2946.2,2946.1,4.37740205]
[1765838742430,1.0811,2946.2,2946.1,4.37740205]
[1765838743438,1.0811,2946.2,2946.1,3.84140205]
[1765838743640,0.597,2946.2,2946.1,3.84140205]
[1765838746714,0.598,2946.2,2946.1,3.84140205]
[1765838748114,1.0821,2946.2,2946.1,3.84140205]
[1765838749628,0.598,2946.2,2946.1,3.84140205]
[1765838750534,1.0821,2946.2,2946.1,3.84140205]
[1765838750943,0.598,2946.2,2946.1,3.84140205]
[1765838762249,0.537,2946.2,2946.1,4.30990205]
[1765838764644,0.537,2946.2,2946.1,4.77420205]
[1765838764841,0.537,2946.2,2946.1,4.30990205]
[1765838765719,0.537,2946.2,2946.1,4.77420205]
[1765838765924,0.537,2946.2,2946.1,4.95890205]
[1765838772624,0.537,2946.2,2946.1,4.30990205]
[1765838776148,0.537,2946.2,2946.1,3.84140205]
[1765838776321,0.9998,2946.2,2946.1,3.84140205]
[1765838776945,0.537,2946.2,2946.1,4.29940205]
[1765838777947,0.537,2946.2,2946.1,3.84140205]
[1765838778154,0.537,2946.2,2946.1,4.29940205]
[1765838778553,0.537,2946.2,2946.1,7.69371996]
[1765838779051,0.537,2946.2,2946.1,8.15801996]
[1765838779251,0.537,2946.2,2946.1,9.31366463]
[1765838779429,0.001,2946.2,2946.1,9.31366463]
[1765838779828,0.001,2946.2,2946.1,9.44973733]
[1765838792171,0.001,2946.2,2946.1,9.45773733]
[1765838797273,0.001,2946.2,2946.1,8.30209266]
[1765838797475,0.001,2946.2,2946.1,9.4721446]
[1765838802352,0.001,2946.2,2946.1,8.9958446]
[1765838803052,0.001,2946.2,2946.1,9.4721446]
[1765838810161,0.001,2946.2,2946.1,5.63074255]
[1765838811394,0.001,2946.2,2946.1,12.38096135]
[1765838812260,0.001,2946.2,2946.1,12.38060023]
[1765838826198,7.15536168,2947.7,2947.0,0.122]
[1765838826577,0.0982,2947.1,2947.0,0.122]
[1765838826776,0.5473,2947.1,2947.0,0.122]
[1765838828701,0.001,2947.1,2947.0,0.122]
[1765838829307,0.001,2947.1,2947.0,1.0667]
[1765838829478,0.001,2947.1,2947.0,11.20983898]
[1765838829681,0.001,2947.1,2947.0,16.19129679]
[1765838837419,0.001,2947.1,2947.0,8.98563911]
[1765838837637,0.001,2947.1,2947.0,16.19129679]
[1765838838522,0.001,2947.1,2947.0,8.49673911]
[1765838838687,0.001,2947.1,2947.0,8.49873911]
[1765838839717,0.001,2947.1,2947.0,9.44343911]
[1765838840318,0.001,2947.1,2947.0,16.19329679]
[1765838854707,0.001,2947.1,2947.0,12.35189474]
[1765838871621,0.001,2947.1,2947.0,16.19329679]
[1765838873455,0.001,2947.1,2947.0,16.18881917]
[1765838876955,0.001,2947.1,2947.0,12.34741712]
[1765838877723,0.001,2947.1,2947.0,5.60203706]
[1765838877923,0.001,2947.1,2947.0,12.34741712]
[1765838879248,0.001,2947.1,2947.0,12.34727928]
[1765838880520,0.001,2947.1,2947.0,5.60203706]
[1765838881766,0.4694,2947.1,2947.0,4.23378163]
[1765838881946,0.5502,2947.1,2947.0,0.26002504]
[1765838883543,0.5502,2947.1,2947.0,0.124]
[1765838973348,0.955704,2947.1,2947.0,0.124]
[1765838976553,0.98960015,2947.1,2947.0,0.124]
[1765838977451,1.16930579,2947.1,2947.0,0.124]
[1765838985951,1.13540964,2947.1,2947.0,0.124]
[1765838987851,0.405504,2946.8,2946.3,1.02061818]
[1765838988043,0.536,2946.7,2946.3,4.86202023]
[1765838988245,0.4905,2946.4,2946.3,4.86202023]
[1765838988445,0.4905,2946.4,2946.3,3.84140205]
[1765838988751,0.7333,2946.4,2946.3,4.61830205]
[1765838989929,0.7333,2946.4,2946.3,0.7769]
[1765838989930,1.138804,2946.4,2946.3,0.7769]
[1765838990159,0.405504,2946.3,2946.0,0.002]
[1765838990332,0.4905,2946.1,2946.0,0.002]
[1765838990748,0.5494,2946.1,2946.0,0.002]
[1765838996267,0.58329615,2946.1,2946.0,0.002]
[1765838998065,1.03880015,2946.1,2945.8,0.002]
[1765838998265,0.464404,2945.9,2945.8,0.002]
[1765838998645,0.954704,2945.9,2945.8,0.002]
[1765838999868,1.39799587,2945.9,2945.8,0.002]
[1765839000074,0.954704,2945.9,2945.8,0.002]
[1765839000976,0.98860015,2945.9,2945.8,0.002]
[1765839002175,0.954704,2945.9,2945.8,0.002]
[1765839002350,0.98860015,2945.9,2945.8,0.002]
[1765839005577,0.405504,2945.8,2945.3,0.13810742]
[1765839005779,0.0049,2945.4,2945.3,3.97950947]
[1765839006160,0.465,2945.4,2945.3,3.97950947]
[1765839011792,0.465,2945.4,2945.3,3.98150947]
[1765839028694,0.465,2945.4,2945.3,0.002]
[1765839038304,11.68674068,2945.4,2945.3,0.002]
[1765839038604,11.68674068,2945.4,2944.9,0.002]
[1765839038605,0.461204,2945.1,2944.9,0.002]
[1765839038825,0.65729615,2945.0,2944.9,0.002]
[1765839039019,1.11939615,2945.0,2944.9,0.002]
[1765839039690,4.51498188,2945.0,2944.9,0.002]
[1765839039903,1.63006271,2945.0,2944.9,0.002]
[1765839040207,1.63006271,2945.0,2944.8,0.002]
[1765839040208,0.405504,2944.9,2944.8,0.002]
[1765839040410,1.60297929,2944.9,2944.8,0.002]
[1765839041782,4.99868033,2944.9,2944.8,0.002]
[1765839041976,5.96477908,2944.9,2944.8,0.002]
[1765839042504,5.99867523,2944.9,2944.8,0.002]
[1765839043684,5.99867523,2944.9,2944.2,0.13617971]
[1765839043685,0.98597929,2944.8,2944.2,0.13617971]
[1765839043884,1.53057929,2944.8,2944.2,0.13617971]
[1765839045514,1.53057929,2944.8,2944.0,0.002]
[1765839046821,0.881604,2944.7,2944.0,0.002]
[1765839047018,0.0731,2944.5,2944.0,0.002]
[1765839047415,0.5439,2944.5,2944.0,0.002]
[1765839056135,0.57779615,2944.5,2944.0,0.002]
[1765839057339,1.06932153,2944.5,2944.0,0.002]
[1765839057554,0.57779615,2944.5,2944.0,0.002]
[1765839058739,0.57779615,2944.5,2944.2,3.84140205]
[1765839059421,0.5439,2944.5,2944.2,3.84140205]
[1765839060842,0.0731,2944.5,2944.2,3.84140205]
[1765839061212,0.5439,2944.5,2944.2,3.84140205]
[1765839061546,0.0731,2944.5,2944.2,3.84140205]
[1765839061710,0.5439,2944.5,2944.2,3.84140205]
[1765839064219,0.0731,2944.5,2944.2,3.84140205]
[1765839064540,0.5452,2944.5,2944.2,3.84140205]
[1765839064727,0.5452,2944.5,2944.3,3.84140205]
[1765839064926,0.0731,2944.5,2944.3,3.84140205]
[1765839065536,0.537,2944.6,2944.4,0.4596]
[1765839066212,0.001,2944.6,2944.5,0.4576]
[1765839066415,0.001,2944.6,2944.5,1.22955796]
[1765839066746,0.001,2944.6,2944.5,2.22405796]
[1765839067114,0.001,2944.6,2944.5,8.98623757]
[1765839067421,0.001,2945.8,2944.6,0.58047529]
[1765839067622,0.001,2945.8,2945.7,0.4576]
[1765839067848,0.001,2945.8,2945.3,6.76217961]
[1765839068044,0.001,2945.8,2945.4,1.36551796]
[1765839068345,0.001,2945.8,2945.4,1.90251796]
[1765839068523,0.001,2945.8,2945.5,0.4978]
[1765839068720,0.001,2945.8,2945.4,1.40471796]
[1765839068920,0.4977,2945.8,2945.4,1.40471796]
[1765839069120,0.4977,2945.8,2945.4,1.90251796]
[1765839070448,0.0527,2945.5,2945.4,1.21321796]
[1765839071023,0.001,2945.8,2945.4,1.21321796]
[1765839071224,0.4534,2945.5,2945.4,0.537]
[1765839071425,0.0966,2945.8,2945.4,0.537]
[1765839071621,0.001,2945.8,2945.4,0.537]
[1765839071934,0.001,2945.8,2945.5,0.4978]
[1765839072131,0.001,2945.8,2945.5,4.33920205]
[1765839072336,0.001,2945.8,2945.5,3.84140205]
[1765839073258,0.4534,2945.6,2945.5,3.84140205]
[1765839073550,0.001,2945.8,2945.5,3.84140205]
[1765839073745,0.001,2945.8,2945.7,0.4576]
[1765839074251,0.001,2945.8,2945.7,0.9554]
[1765839078154,0.001,2945.8,2945.7,4.79680205]
[1765839080847,0.001,2945.8,2945.7,4.29900205]
[1765839081351,0.001,2945.8,2945.7,4.79680205]
[1765839081554,0.001,2945.8,2945.7,9.00782415]
[1765839081938,0.001,2945.8,2945.7,9.54382415]
[1765839087340,0.1049,2947.0,2945.8,0.9554]
[1765839087679,0.1049,2947.0,2946.0,6.75229433]
[1765839087850,0.001,2947.0,2946.1,0.7773641]
[1765839088164,0.001,2947.0,2946.1,1.2751641]
[1765839088354,0.4977,2947.0,2946.2,0.4978]
[1765839088662,1.07817529,2947.0,2946.2,1.02045502]
[1765839088838,0.4977,2947.0,2946.2,1.02045502]
[1765839089038,0.4967,2946.9,2946.2,1.02045502]
[1765839090273,0.4967,2946.9,2946.2,4.41463565]
[1765839090638,0.4967,2946.9,2946.2,3.39418063]
[1765839090940,0.4967,2946.9,2946.3,0.61537144]
[1765839091464,0.0527,2946.4,2946.3,0.61537144]
[1765839091661,0.4967,2946.9,2946.3,1.01632665]
[1765839091862,0.4967,2946.9,2946.3,1.95182665]
[1765839092680,0.4967,2946.9,2946.3,5.34585438]
[1765839093235,0.536,2946.9,2946.3,8.26034187]
[1765839093473,0.536,2946.9,2946.4,0.4744]
[1765839093675,0.536,2946.9,2946.8,0.4748]
[1765839096044,0.537,2946.9,2946.8,0.4748]
[1765839103583,0.6007,2946.9,2946.6,0.537]
[1765839103770,0.0048,2946.7,2946.3,3.39404541]
[1765839103947,1.0185,2946.9,2946.0,3.39443312]
[1765839104153,1.0227,2946.9,2946.4,0.6007]
[1765839106258,0.537,2946.9,2946.5,3.83940205]
[1765839106958,1.0227,2946.9,2946.5,3.83940205]
[1765839107158,0.0637,2946.6,2946.5,3.83940205]
[1765839107854,0.001,2946.9,2946.5,4.31420205]
[1765839108061,0.001,2946.9,2946.6,0.4744]
[1765839108358,0.001,2946.9,2946.8,0.4748]
[1765839109279,0.001,2946.9,2946.8,4.78860205]
[1765839118310,0.001,2946.9,2946.8,8.18211365]
[1765839118602,0.001,2946.9,2946.8,4.78860205]
[1765839119101,0.001,2946.9,2946.8,8.18211365]
[1765839119296,0.001,2946.9,2946.8,8.6655648]
[1765839120307,0.001,2946.9,2946.8,8.80158937]
[1765839121397,0.001,2946.9,2946.8,7.85238937]
[1765839121598,0.2474,2946.9,2946.8,3.83940205]
[1765839121808,0.7301,2946.9,2946.8,3.83940205]
[1765839123216,0.2474,2946.9,2946.8,3.83940205]
[1765839123602,0.001,2946.9,2946.8,3.83940205]
[1765839123912,0.001,2946.9,2946.8,4.32320205]
[1765839124115,0.001,2946.9,2946.8,7.71671365]
[1765839124413,0.001,2946.9,2946.8,9.33463916]
[1765839126198,0.001,2946.9,2946.8,9.47066327]
[1765839126600,0.001,2946.9,2946.8,10.00666327]
[1765839128416,0.001,2946.9,2946.8,9.47066327]
[1765839128789,0.001,2946.9,2946.8,10.00666327]
[1765839129014,0.001,2946.9,2946.8,9.33463916]
[1765839133932,0.001,2946.9,2946.8,5.49523711]
[1765839154242,0.001,2946.9,2946.8,5.03443711]
[1765839154913,0.001,2946.9,2946.8,5.53443711]
[1765839166859,0.001,2946.9,2946.8,5.67047094]
[1765839170447,0.001,2946.9,2946.8,4.01334543]
[1765839170966,0.001,2946.9,2946.8,4.51334543]
[1765839181781,0.001,2946.9,2946.8,4.01334543]
[1765839182777,0.001,2946.9,2946.8,4.49824543]
[1765839191088,0.001,2946.9,2946.8,3.52954543]
[1765839191089,0.0989,2946.9,2946.8,3.52954543]
[1765839191492,0.001,2946.9,2946.8,4.02714543]
[1765839192357,0.001,2946.9,2946.8,4.51204543]
[1765839195399,0.001,2946.9,2946.8,8.36204543]
[1765839202404,0.001,2946.9,2946.8,9.53761255]
[1765839215613,0.001,2946.9,2946.8,9.05271255]
[1765839215802,0.001,2946.9,2946.8,8.55511255]
[1765839215803,0.4857,2946.9,2946.8,8.55511255]
[1765839216410,0.001,2946.9,2946.8,9.03131255]
[1765839218687,0.001,2946.9,2946.8,9.52761255]
[1765839225185,0.001,2946.9,2946.8,10.06361255]
[1765839226490,0.001,2946.9,2946.8,16.81238706]
[1765839228000,0.001,2946.9,2946.8,10.06361255]
[1765839228188,0.001,2946.9,2946.8,16.81238706]
[1765839230814,0.001,2946.9,2946.8,10.06361255]
[1765839231021,0.001,2947.3,2947.2,3.847]
[1765839231221,0.001,2947.3,2947.2,4.93884025]
[1765839231520,0.001,2947.3,2947.2,5.43514025]
[1765839231709,0.001,2947.3,2947.2,5.5711491]
[1765839233532,0.001,2947.3,2947.2,8.96420013]
[1765839236029,0.001,2947.3,2947.2,7.79410013]
[1765839236230,0.001,2947.3,2947.2,7.37605988]
[1765839237025,0.001,2947.3,2947.2,7.85225988]
[1765839237232,0.001,2947.3,2947.2,8.34855988]
[1765839242536,0.001,2947.3,2947.2,8.34535988]
[1765839251615,0.001,2947.3,2947.2,4.49835988]
[1765839251811,0.001,2947.3,2947.2,5.34111148]
[1765839262222,0.05,2948.8,2948.1,0.6848]
[1765839262540,0.001,2949.3,2948.1,0.6848]
[1765839262541,0.001,2949.3,2948.4,1.06547529]
[1765839262734,0.001,2949.3,2948.5,1.23585577]
[1765839262939,0.001,2949.3,2948.5,1.72015577]
[1765839263140,0.001,2949.3,2948.6,0.4843]
[1765839263446,0.001,2949.3,2948.7,10.17397497]
[1765839263950,0.001,2949.3,2948.8,0.4843]
[1765839264118,0.001,2949.3,2948.8,1.50401621]
[1765839264319,0.001,2949.3,2948.9,0.4843]
[1765839264851,0.001,2949.3,2949.0,0.5318]
[1765839265445,0.4828,2949.3,2949.1,3.390865]
[1765839265652,0.001,2949.3,2949.1,3.390865]
[1765839265818,0.0675,2949.2,2949.1,3.390865]
[1765839266022,0.0675,2949.2,2949.1,3.922665]
[1765839266856,0.001,2949.3,2949.1,3.922665]
[1765839267727,0.001,2949.3,2949.1,7.31353]
[1765839267927,0.0675,2949.2,2949.1,3.922665]
[1765839269230,0.5452,2949.2,2949.1,3.922665]
[1765839273371,0.5452,2949.2,2949.1,3.390865]
[1765839273559,0.5452,2949.2,2948.6,10.17429095]
[1765839273871,0.5452,2949.2,2949.0,0.5452]
[1765839273872,0.405504,2949.1,2949.0,0.5452]
[1765839274071,0.2118,2948.7,2948.6,3.39141095]
[1765839274375,0.0681,2948.7,2948.6,3.39141095]
[1765839274689,0.5451,2948.7,2948.6,3.39141095]
[1765839276752,0.477,2949.0,2948.6,3.39141095]